bitfinex-derivatives/quotes_BTCF0:USTF0_20250121
["timestamp","ask_amount","ask_price","bid_price","bid_amount"]
[1737467005773,0.08586549,104580.0,104570.0,0.47250579]
[1737467006071,0.08586549,104580.0,104570.0,0.52830579]
[1737467006578,0.36094338,104590.0,104580.0,0.04786]
[1737467007181,0.36094338,104590.0,104580.0,0.11170179]
[1737467008276,0.00014338,104590.0,104580.0,0.11170179]
[1737467008470,0.00914338,104590.0,104580.0,0.04786]
[1737467008780,0.01814338,104590.0,104580.0,0.04786]
[1737467009382,0.10404513,104590.0,104580.0,0.04786]
[1737467009879,0.10404513,104590.0,104580.0,0.11170179]
[1737467011381,0.10404513,104590.0,104580.0,0.12089701]
[1737467011885,0.10404513,104590.0,104580.0,0.05705522]
[1737467015684,0.10404513,104590.0,104580.0,0.12089701]
[1737467016287,0.01814338,104590.0,104580.0,0.12089701]
[1737467018584,0.01814338,104590.0,104580.0,0.48169701]
[1737467026790,0.01814338,104590.0,104580.0,0.12089701]
[1737467027096,0.01814338,104590.0,104580.0,0.48169701]
[1737467030986,0.01814338,104590.0,104580.0,0.71032095]
[1737467035100,0.01814338,104590.0,104580.0,0.77416274]
[1737467035302,0.01814338,104590.0,104580.0,0.71032095]
[1737467035601,0.01814338,104590.0,104580.0,0.77416274]
[1737467036898,0.01814338,104590.0,104580.0,0.71032095]
[1737467037603,0.01814338,104590.0,104580.0,0.64647916]
[1737467037997,0.01814338,104590.0,104580.0,0.71032095]
[1737467038294,0.01814338,104590.0,104580.0,0.34952095]
[1737467038497,0.07424338,104590.0,104580.0,0.28567916]
[1737467038688,0.48289838,104590.0,104580.0,0.27648394]
[1737467038896,0.17979838,104590.0,104580.0,0.27648394]
[1737467039090,0.07424338,104590.0,104580.0,0.39748171]
[1737467039800,0.01814338,104590.0,104580.0,0.39748171]
[1737467041991,0.01814338,104590.0,104580.0,0.8221235]
[1737467042194,0.01814338,104590.0,104580.0,0.53634358]
[1737467042195,0.21873702,104590.0,104580.0,0.53634358]
[1737467042400,0.21873702,104590.0,104580.0,0.58591536]
[1737467042996,0.12783702,104590.0,104580.0,0.68153136]
[1737467044002,0.13683702,104590.0,104580.0,0.68153136]
[1737467044995,0.14283702,104590.0,104580.0,0.68253136]
[1737467045195,0.09283702,104590.0,104580.0,0.68253136]
[1737467045499,0.14331296,104600.0,104590.0,0.047855]
[1737467045802,0.14331296,104600.0,104590.0,0.52789679]
[1737467046304,0.14331296,104600.0,104590.0,0.58349679]
[1737467046599,0.00914338,104600.0,104590.0,0.58449679]
[1737467046809,0.01814338,104600.0,104590.0,0.58549679]
[1737467048601,0.01814338,104600.0,104590.0,0.63507151]
[1737467050701,0.01814338,104600.0,104590.0,0.86406316]
[1737467052908,0.01814338,104600.0,104590.0,0.99316743]
[1737467053309,0.01814338,104600.0,104590.0,1.0350392]
[1737467053509,0.01814338,104600.0,104590.0,1.0942392]
[1737467053808,0.01814338,104600.0,104590.0,1.13611082]
[1737467054005,3.8e-07,104600.0,104590.0,1.15808099]
[1737467054320,0.14316958,104620.0,104610.0,0.047846]
[1737467054611,0.14316958,104620.0,104610.0,0.53632958]
[1737467054804,0.14316958,104620.0,104610.0,0.64702958]
[1737467055200,0.14316958,104620.0,104610.0,0.519346]
[1737467055400,0.14316958,104620.0,104610.0,0.64702958]
[1737467056108,0.14716958,104620.0,104610.0,0.64902958]
[1737467058210,0.003,104620.0,104610.0,1.04922291]
[1737467058904,0.003,104620.0,104610.0,1.05883765]
[1737467064112,0.003,104620.0,104610.0,1.11373765]
[1737467065315,0.003,104620.0,104610.0,1.20932623]
[1737467065510,0.00014338,104630.0,104620.0,0.047841]
[1737467065711,3.8e-07,104630.0,104620.0,0.53632458]
[1737467065916,3.8e-07,104630.0,104620.0,0.55540355]
[1737467066311,3.8e-07,104630.0,104620.0,0.5554029]
[1737467066809,3.8e-07,104630.0,104620.0,0.5564029]
[1737467067222,3.8e-07,104630.0,104620.0,0.71482414]
[1737467067520,3.8e-07,104630.0,104620.0,0.71582414]
[1737467067717,0.37397308,104650.0,104640.0,0.047832]
[1737467067914,0.37397308,104650.0,104640.0,0.53631558]
[1737467067915,0.31497308,104650.0,104640.0,0.53631558]
[1737467068321,0.31497308,104650.0,104640.0,0.63189503]
[1737467068523,0.0553,104660.0,104640.0,0.63189503]
[1737467068726,0.56296958,104670.0,104660.0,0.047823]
[1737467068915,0.20216958,104670.0,104660.0,0.11166479]
[1737467069719,0.20216958,104670.0,104660.0,0.11266479]
[1737467069921,0.20216958,104670.0,104660.0,0.11366479]
[1737467070713,0.20216958,104670.0,104660.0,0.53830658]
[1737467071018,0.20216958,104670.0,104660.0,0.59810658]
[1737467071226,0.20216958,104670.0,104660.0,0.59710658]
[1737467071423,0.20216958,104670.0,104660.0,0.53426479]
[1737467071616,0.20216958,104670.0,104660.0,0.47446479]
[1737467072320,0.20216958,104670.0,104660.0,0.11366479]
[1737467072627,0.059,104670.0,104660.0,0.11366479]
[1737467073016,0.1159,104670.0,104660.0,0.11366479]
[1737467073325,0.1159,104670.0,104660.0,0.12305126]
[1737467075624,0.42,104680.0,104670.0,0.047818]
[1737467075824,0.42,104680.0,104670.0,0.11165979]
[1737467075825,0.1142,104680.0,104670.0,0.11165979]
[1737467076533,0.475,104680.0,104670.0,0.11165979]
[1737467077139,0.475,104680.0,104670.0,0.11265979]
[1737467077440,0.475,104680.0,104670.0,0.11365979]
[1737467080537,0.522814,104680.0,104670.0,0.049818]
[1737467082743,0.475,104680.0,104670.0,0.11365979]
[1737467083143,0.4158,104680.0,104670.0,0.049818]
[1737467083345,0.4158,104680.0,104670.0,0.11365979]
[1737467083647,0.3608,104680.0,104670.0,0.17750158]
[1737467084449,0.4722,104690.0,104680.0,0.047814]
[1737467084743,0.4722,104690.0,104680.0,0.11165579]
[1737467084946,0.520009,104690.0,104680.0,0.047814]
[1737467086348,0.520009,104690.0,104680.0,0.048814]
[1737467086749,0.520009,104690.0,104680.0,0.049814]
[1737467089656,0.520009,104690.0,104680.0,0.11365579]
[1737467090755,0.520009,104690.0,104680.0,0.049814]
[1737467093855,0.4175,104690.0,104680.0,0.11365579]
[1737467094150,0.4175,104690.0,104680.0,0.049814]
[1737467094345,0.465309,104690.0,104680.0,0.049814]
[1737467095352,0.4175,104690.0,104680.0,0.049814]
[1737467095650,0.465309,104690.0,104680.0,0.049814]
[1737467097054,0.4175,104690.0,104680.0,0.049814]
[1737467097352,0.465309,104690.0,104680.0,0.049814]
[1737467100156,0.465309,104690.0,104680.0,0.002]
[1737467100157,0.52915079,104690.0,104680.0,0.002]
[1737467100552,0.047819,104670.0,104660.0,0.04796438]
[1737467100855,0.408619,104670.0,104660.0,0.04796438]
[1737467101051,0.464019,104670.0,104660.0,0.04796438]
[1737467101253,0.88866079,104670.0,104660.0,0.00014338]
[1737467101556,0.047823,104660.0,104650.0,0.33360492]
[1737467101751,0.047823,104660.0,104640.0,0.39076791]
[1737467101752,0.52766479,104660.0,104640.0,0.39076791]
[1737467101942,0.52886979,104650.0,104640.0,0.34293591]
[1737467103350,0.465028,104650.0,104640.0,0.34293591]
[1737467103550,0.47423039,104650.0,104640.0,0.39476791]
[1737467104254,0.41783039,104650.0,104640.0,0.46956068]
[1737467104461,0.41983039,104650.0,104640.0,0.47056068]
[1737467105053,0.42783039,104650.0,104640.0,0.40771889]
[1737467105954,0.42583039,104650.0,104640.0,0.40571889]
[1737467106160,0.56999997,104650.0,104640.0,0.06478298]
[1737467106554,0.56999997,104650.0,104640.0,0.12862477]
[1737467107556,0.56079758,104650.0,104640.0,0.12862477]
[1737467107750,0.56079758,104650.0,104640.0,0.18232477]
[1737467107955,0.15216958,104650.0,104640.0,0.24616656]
[1737467108255,0.15216958,104650.0,104640.0,0.60696656]
[1737467109665,0.00014338,104660.0,104650.0,0.047828]
[1737467109960,0.00014338,104660.0,104650.0,0.48742077]
[1737467110761,0.00014338,104660.0,104650.0,0.42357898]
[1737467110960,0.00114338,104660.0,104650.0,0.49779051]
[1737467111161,0.00114338,104660.0,104650.0,0.41899774]
[1737467111364,0.00114338,104660.0,104650.0,0.48283953]
[1737467111966,0.61782009,104670.0,104650.0,0.48283953]
[1737467111967,0.25702009,104670.0,104650.0,0.64223337]
[1737467112264,0.25702009,104670.0,104660.0,0.47246479]
[1737467112459,0.25702009,104670.0,104660.0,0.53126479]
[1737467112664,0.25702009,104670.0,104660.0,0.17046479]
[1737467113563,0.25702009,104670.0,104660.0,0.17146479]
[1737467114066,0.25702009,104670.0,104660.0,0.17246479]
[1737467114265,0.408614,104680.0,104660.0,0.17246479]
[1737467114461,0.408614,104680.0,104670.0,0.047819]
[1737467116165,0.408614,104680.0,104670.0,0.11266079]
[1737467116668,0.41793288,104680.0,104670.0,0.11266079]
[1737467117069,0.41793288,104680.0,104670.0,0.11366079]
[1737467118474,0.408614,104680.0,104670.0,0.11366079]
[1737467118771,0.3608,104680.0,104670.0,0.11366079]
[1737467119172,0.3608,104680.0,104670.0,0.16776079]
[1737467119969,0.52973115,104690.0,104680.0,0.047814]
[1737467120175,0.52973115,104690.0,104680.0,0.17015579]
[1737467120372,0.52973115,104690.0,104680.0,0.18509998]
[1737467121174,0.52973115,104690.0,104680.0,0.18609998]
[1737467122376,0.52973115,104690.0,104680.0,0.18709998]
[1737467122875,0.52973115,104690.0,104680.0,0.12859998]
[1737467125475,0.4155,104690.0,104680.0,0.12859998]
[1737467125786,0.463309,104690.0,104680.0,0.06375819]
[1737467126079,0.463309,104690.0,104680.0,0.06475819]
[1737467127576,0.4155,104690.0,104680.0,0.12859998]
[1737467130885,0.463309,104690.0,104680.0,0.06475819]
[1737467131073,0.463309,104690.0,104680.0,0.06475724]
[1737467132382,0.463309,104690.0,104680.0,0.06475762]
[1737467135583,0.52715079,104690.0,104680.0,0.049814]
[1737467136081,0.463309,104690.0,104680.0,0.049814]
[1737467136380,0.463309,104690.0,104680.0,0.06475847]
[1737467138386,0.463309,104690.0,104680.0,0.12860026]
[1737467139288,0.517009,104690.0,104680.0,0.12860026]
[1737467139583,0.575009,104690.0,104680.0,0.12860026]
[1737467139787,0.575009,104690.0,104680.0,0.06475847]
[1737467140485,0.575009,104690.0,104680.0,0.12860026]
[1737467140684,0.575009,104690.0,104680.0,0.12860015]
[1737467141085,0.575009,104690.0,104680.0,0.06475836]
[1737467144376,0.71826609,104690.0,104680.0,0.06475836]
[1737467144888,0.71826609,104690.0,104680.0,0.06475761]
[1737467146283,0.71826609,104690.0,104680.0,0.1285994]
[1737467147991,0.60656609,104690.0,104680.0,0.1285994]
[1737467148192,0.1271373,104700.0,104680.0,0.80436585]
[1737467148393,0.1039,104720.0,104710.0,0.0478]
[1737467148596,0.1574,104720.0,104710.0,0.1265854]
[1737467149092,0.1574,104720.0,104710.0,0.06274361]
[1737467149295,0.565996,104720.0,104710.0,0.06274361]
[1737467149685,0.565996,104720.0,104710.0,0.06374361]
[1737467150592,0.565996,104720.0,104710.0,0.1275854]
[1737467151393,0.565996,104720.0,104710.0,0.1285854]
[1737467151893,0.565996,104720.0,104710.0,0.1275854]
[1737467152093,0.565996,104720.0,104710.0,0.1285854]
[1737467152294,0.68058008,104720.0,104710.0,0.29994573]
[1737467152590,0.11458408,104720.0,104710.0,0.29994573]
[1737467152794,0.11458408,104720.0,104710.0,0.45824573]
[1737467153399,0.11458408,104720.0,104710.0,0.81904573]
[1737467154695,0.11458408,104720.0,104710.0,0.9287397]
[1737467155003,0.11458408,104720.0,104710.0,0.85346131]
[1737467155203,0.11458408,104720.0,104710.0,0.94895861]
[1737467155395,0.11458408,104720.0,104710.0,0.89959942]
[1737467155615,0.11458408,104720.0,104710.0,0.98980793]
[1737467155816,0.11458408,104720.0,104710.0,1.03913191]
[1737467156223,0.11458408,104720.0,104710.0,1.03813191]
[1737467156420,0.11458408,104720.0,104710.0,0.98980793]
[1737467156821,0.4116,104740.0,104730.0,0.047791]
[1737467156822,0.52618408,104740.0,104730.0,0.047791]
[1737467157026,0.16538408,104740.0,104730.0,0.12656796]
[1737467157226,0.57397108,104740.0,104730.0,0.12656796]
[1737467157724,0.57397108,104740.0,104730.0,0.06272617]
[1737467157926,0.57397108,104740.0,104730.0,0.12656796]
[1737467158118,0.57397108,104740.0,104730.0,0.12756796]
[1737467159127,0.57397108,104740.0,104730.0,0.12856796]
[1737467160230,0.57397108,104740.0,104730.0,0.12856939]
[1737467161128,0.57397108,104740.0,104730.0,0.0647276]
[1737467161724,0.459387,104740.0,104730.0,0.0647276]
[1737467163318,0.459387,104740.0,104730.0,0.12856939]
[1737467163830,0.4116,104740.0,104730.0,0.12856939]
[1737467165930,0.0508,104740.0,104730.0,0.18106939]
[1737467166817,0.0508,104740.0,104730.0,0.180714]
[1737467167023,0.4116,104740.0,104730.0,0.06437221]
[1737467167231,0.0508,104740.0,104730.0,0.06437221]
[1737467167730,0.0508,104740.0,104730.0,0.128214]
[1737467167922,0.0508,104740.0,104730.0,0.12821309]
[1737467169527,0.41805092,104750.0,104730.0,0.12821309]
[1737467169729,0.41805092,104750.0,104740.0,0.11162879]
[1737467169932,0.52305092,104750.0,104740.0,0.06272269]
[1737467171530,0.52305092,104750.0,104740.0,0.06372269]
[1737467172334,0.52305092,104750.0,104740.0,0.06472269]
[1737467176035,0.52305092,104750.0,104740.0,0.06472223]
[1737467177737,0.58689271,104750.0,104740.0,0.06472223]
[1737467178236,0.52305092,104750.0,104740.0,0.06472223]
[1737467179429,0.52305092,104750.0,104740.0,0.12856402]
[1737467179837,0.513584,104750.0,104740.0,0.12856402]
[1737467180135,0.4658,104750.0,104740.0,0.12856402]
[1737467180735,0.1999943,104760.0,104750.0,0.047782]
[1737467180938,0.1999943,104760.0,104750.0,0.55120081]
[1737467181235,0.1,104770.0,104760.0,0.047777]
[1737467181440,0.1,104770.0,104760.0,0.63556058]
[1737467181833,0.1,104770.0,104760.0,0.7310123]
[1737467182139,0.07014189,104770.0,104760.0,0.78775129]
[1737467182535,0.07014189,104770.0,104760.0,0.82219736]
[1737467182930,0.07014189,104770.0,104760.0,0.80726831]
[1737467183126,0.07014189,104770.0,104760.0,0.87240076]
[1737467183331,0.07014189,104770.0,104760.0,0.72774564]
[1737467183840,0.07014189,104770.0,104760.0,0.7769362]
[1737467184043,0.07014189,104770.0,104760.0,0.78649388]
[1737467184539,0.07014189,104770.0,104760.0,0.6620469]
[1737467185740,0.07014189,104770.0,104760.0,1.46911388]
[1737467186139,0.07014189,104770.0,104760.0,1.51091552]
[1737467186340,0.07014189,104770.0,104760.0,1.46911388]
[1737467186736,0.07014189,104770.0,104760.0,1.10831388]
[1737467186938,0.07014189,104770.0,104760.0,1.04447209]
[1737467187149,0.07014189,104770.0,104760.0,1.15011732]
[1737467187335,0.07014189,104770.0,104760.0,1.24556904]
[1737467187640,0.07014189,104770.0,104760.0,1.15011732]
[1737467187834,0.07014189,104770.0,104760.0,1.08627553]
[1737467188935,0.07014189,104770.0,104760.0,1.08627684]
[1737467189133,0.07014189,104770.0,104760.0,1.0444734]
[1737467189333,0.07014189,104770.0,104760.0,0.27921103]
[1737467189535,0.07014189,104770.0,104760.0,0.64001103]
[1737467189734,0.07014189,104770.0,104760.0,0.70385282]
[1737467189932,0.07014189,104770.0,104760.0,0.66204821]
[1737467191044,0.07014189,104770.0,104760.0,0.66204799]
[1737467191256,0.07014189,104770.0,104760.0,0.2374062]
[1737467191443,0.07014189,104770.0,104760.0,0.5982062]
[1737467191649,0.47871489,104770.0,104760.0,0.07426441]
[1737467191845,0.047777,104760.0,104750.0,0.39877662]
[1737467192040,0.57361879,104760.0,104750.0,0.39877662]
[1737467192242,0.509777,104760.0,104750.0,0.39877662]
[1737467192436,0.509777,104760.0,104750.0,0.44655862]
[1737467192637,0.509777,104760.0,104750.0,0.51040041]
[1737467193141,0.462,104760.0,104750.0,0.51140041]
[1737467193541,0.3608,104760.0,104750.0,0.51140041]
[1737467193747,0.07014189,104770.0,104760.0,0.047777]
[1737467193939,0.47871489,104770.0,104760.0,0.047777]
[1737467194135,0.54255668,104770.0,104750.0,0.39977662]
[1737467194350,0.52201879,104760.0,104750.0,0.39977662]
[1737467194540,0.57501879,104760.0,104750.0,0.39977662]
[1737467195141,0.62371879,104760.0,104750.0,0.31877662]
[1737467195341,0.047782,104750.0,104740.0,0.28512685]
[1737467195546,0.47242379,104750.0,104740.0,0.28512685]
[1737467196451,0.47242379,104750.0,104740.0,0.1705751]
[1737467196949,0.47242379,104750.0,104730.0,0.28509748]
[1737467196950,0.047787,104740.0,104730.0,0.28509748]
[1737467197150,0.47242879,104740.0,104730.0,0.28509748]
[1737467198242,0.47242879,104740.0,104730.0,0.29109748]
[1737467198756,0.47242879,104740.0,104730.0,0.29098347]
[1737467198953,0.47242879,104740.0,104730.0,0.29998347]
[1737467200758,0.47242879,104740.0,104730.0,0.015]
[1737467201455,0.48195457,104740.0,104730.0,0.015]
[1737467202449,0.48195457,104740.0,104720.0,0.00014338]
[1737467202450,0.047791,104730.0,104720.0,0.00014338]
[1737467202752,0.506991,104730.0,104720.0,0.00014338]
[1737467203358,0.555791,104730.0,104720.0,0.00014338]
[1737467203552,0.555791,104730.0,104720.0,0.04793938]
[1737467203760,0.408591,104730.0,104720.0,0.11178117]
[1737467203963,0.408591,104730.0,104720.0,0.07187842]
[1737467204261,0.408591,104730.0,104720.0,0.07887842]
[1737467204647,0.408591,104730.0,104720.0,0.03108242]
[1737467205555,0.408591,104730.0,104720.0,0.14272021]
[1737467205749,0.408591,104730.0,104720.0,0.07887807]
[1737467207851,0.408591,104730.0,104720.0,0.06393938]
[1737467208052,0.408591,104730.0,104720.0,0.07887807]
[1737467209654,0.408591,104730.0,104720.0,0.03108207]
[1737467209851,0.47243279,104730.0,104720.0,0.03108207]
[1737467210061,0.0478,104710.0,104700.0,0.047804]
[1737467210247,0.4086,104710.0,104700.0,0.047804]
[1737467210649,0.047805,104700.0,104690.0,0.199707]
[1737467210848,0.408605,104700.0,104690.0,0.199707]
[1737467212163,0.408605,104700.0,104690.0,0.149907]
[1737467212555,0.409605,104700.0,104690.0,0.22174879]
[1737467213061,0.001,104700.0,104690.0,0.22174879]
[1737467213561,0.001,104700.0,104690.0,0.22674879]
[1737467215565,0.00014338,104710.0,104700.0,0.047805]
[1737467215757,0.408593,104730.0,104720.0,0.047796]
[1737467216473,0.408593,104730.0,104720.0,0.16393779]
[1737467217463,0.408593,104730.0,104720.0,0.100096]
[1737467217865,0.42711038,104730.0,104720.0,0.101096]
[1737467218370,0.43611038,104730.0,104720.0,0.102096]
[1737467218971,0.43611038,104730.0,104720.0,0.151496]
[1737467219167,0.49995217,104730.0,104720.0,0.151496]
[1737467219388,0.49995217,104730.0,104720.0,0.1037]
[1737467219888,1.99995217,104730.0,104720.0,0.1037]
[1737467220287,1.93611038,104730.0,104720.0,0.1037]
[1737467220488,0.43611038,104730.0,104720.0,0.1037]
[1737467221692,0.43611038,104730.0,104720.0,0.151496]
[1737467223090,0.43611038,104730.0,104720.0,0.21533779]
[1737467223595,0.43611038,104730.0,104720.0,0.151496]
[1737467223986,0.3788,104730.0,104720.0,0.151496]
[1737467224185,0.3788,104730.0,104720.0,0.21533779]
[1737467225190,0.3788,104730.0,104720.0,0.151496]
[1737467225589,0.3788,104730.0,104720.0,0.21533779]
[1737467226487,0.3788,104730.0,104720.0,0.23027514]
[1737467226885,0.018,104730.0,104720.0,0.23027514]
[1737467227292,0.018,104730.0,104720.0,0.21533779]
[1737467227499,0.018,104730.0,104720.0,0.23027419]
[1737467228500,0.018,104730.0,104720.0,0.21533779]
[1737467228800,0.018,104730.0,104720.0,0.57613779]
[1737467231106,0.018,104730.0,104720.0,0.58567541]
[1737467232899,0.00014338,104740.0,104720.0,0.74500538]
[1737467233102,0.67455354,104760.0,104740.0,0.047787]
[1737467233400,0.67455354,104760.0,104750.0,0.16392379]
[1737467233601,0.67455354,104760.0,104750.0,0.1788571]
[1737467234597,0.67455354,104760.0,104750.0,0.17885695]
[1737467234598,0.68355354,104760.0,104750.0,0.17885695]
[1737467235102,0.68355354,104760.0,104750.0,0.17985695]
[1737467235397,0.51263877,104760.0,104750.0,0.17985695]
[1737467235601,0.51263877,104760.0,104750.0,0.16492379]
[1737467235803,0.51663877,104760.0,104750.0,0.16592379]
[1737467236503,0.51663877,104760.0,104750.0,0.21902379]
[1737467236801,0.51663877,104760.0,104750.0,0.23395695]
[1737467237705,0.51663877,104760.0,104750.0,0.21902379]
[1737467239405,0.15583877,104760.0,104750.0,0.21902379]
[1737467240303,0.15583877,104760.0,104750.0,0.155182]
[1737467240603,0.15583877,104760.0,104750.0,0.64366558]
[1737467240807,0.07014189,104770.0,104760.0,0.047777]
[1737467240996,0.07014189,104770.0,104760.0,0.58796058]
[1737467241306,0.07014189,104770.0,104760.0,0.52411879]
[1737467241502,0.43094189,104770.0,104760.0,0.099477]
[1737467242205,0.55155668,104770.0,104760.0,0.100477]
[1737467242404,0.48771489,104770.0,104760.0,0.048777]
[1737467242600,0.49171489,104770.0,104760.0,0.049777]
[1737467242800,0.49171489,104770.0,104760.0,0.11361879]
[1737467243104,0.49171489,104770.0,104760.0,0.049777]
[1737467244299,0.55555668,104770.0,104760.0,0.002]
[1737467244497,0.047781,104760.0,104750.0,0.047781]
[1737467244699,0.459481,104760.0,104750.0,0.11162279]
[1737467244897,0.459481,104760.0,104750.0,0.21472279]
[1737467245300,0.459481,104760.0,104750.0,0.150881]
[1737467245807,0.459481,104760.0,104750.0,0.152881]
[1737467246308,0.48827186,104770.0,104760.0,0.047777]
[1737467246499,0.48827186,104770.0,104760.0,0.11161879]
[1737467247299,0.48827186,104770.0,104760.0,0.047777]
[1737467248102,0.55211365,104770.0,104760.0,0.047777]
[1737467248702,0.60525957,104770.0,104760.0,0.048777]
[1737467248910,0.60725957,104770.0,104760.0,0.049777]
[1737467249404,0.24645957,104770.0,104760.0,0.049777]
[1737467249806,0.1891296,104770.0,104760.0,0.049777]
[1737467250310,0.1891296,104770.0,104760.0,0.11361879]
[1737467251106,0.1891296,104770.0,104760.0,0.56987051]
[1737467252504,0.07514189,104770.0,104760.0,0.56987051]
[1737467254103,0.07514189,104770.0,104760.0,0.47441879]
[1737467254606,0.07514189,104770.0,104760.0,0.56987051]
[1737467254811,0.07514189,104770.0,104760.0,0.6337123]
[1737467255209,0.11398771,104790.0,104760.0,0.9337123]
[1737467255508,0.11398771,104790.0,104780.0,0.47240979]
[1737467255905,0.11398771,104790.0,104780.0,0.57330979]
[1737467256107,0.11398771,104790.0,104780.0,0.6049015]
[1737467256508,0.11398771,104790.0,104780.0,0.509468]
[1737467256509,0.11498771,104790.0,104780.0,0.509468]
[1737467256705,0.11698771,104790.0,104780.0,0.510468]
[1737467257609,0.11698771,104790.0,104780.0,0.57430979]
[1737467258111,0.11598771,104790.0,104780.0,0.57430979]
[1737467258315,0.11598771,104790.0,104780.0,0.57530979]
[1737467258808,0.11598771,104790.0,104780.0,0.67074329]
[1737467259014,0.11598771,104790.0,104780.0,0.6801748]
[1737467259412,0.002,104790.0,104780.0,0.6801748]
[1737467260720,0.002,104790.0,104780.0,0.52089951]
[1737467261520,0.002,104790.0,104780.0,0.51989951]
[1737467261710,0.002,104790.0,104780.0,0.5847413]
[1737467262016,0.6,104800.0,104780.0,0.5847413]
[1737467262511,0.6,104800.0,104790.0,0.047764]
[1737467262719,0.9608,104800.0,104790.0,0.047764]
[1737467263414,0.9608,104800.0,104790.0,0.11160579]
[1737467263716,0.6,104800.0,104790.0,0.048764]
[1737467264013,1.02464179,104800.0,104790.0,0.048764]
[1737467264312,1.07240079,104800.0,104790.0,0.001]
[1737467265218,1.07240079,104800.0,104790.0,0.002]
[1737467266118,1.07240079,104800.0,104790.0,0.049764]
[1737467266819,1.008559,104800.0,104790.0,0.049764]
[1737467267418,1.26538548,104800.0,104790.0,0.049764]
[1737467267619,1.26538548,104800.0,104790.0,0.11360579]
[1737467267809,1.26538548,104800.0,104790.0,0.049764]
[1737467268009,0.85682648,104800.0,104790.0,0.049764]
[1737467268517,0.85682648,104800.0,104790.0,0.098564]
[1737467270207,0.85682648,104800.0,104790.0,0.11349167]
[1737467270407,0.85682648,104800.0,104790.0,0.17733346]
[1737467270712,0.85682648,104800.0,104790.0,0.16349167]
[1737467271018,0.85682648,104800.0,104790.0,0.58813346]
[1737467271216,0.6,104800.0,104790.0,0.58813346]
[1737467271517,0.6,104800.0,104790.0,0.59752908]
[1737467271722,0.6,104800.0,104790.0,0.33215348]
[1737467272020,0.6,104800.0,104790.0,0.69295348]
[1737467274016,0.6,104800.0,104790.0,0.59752908]
[1737467277424,0.6,104800.0,104790.0,0.75679527]
[1737467277918,0.6,104800.0,104790.0,0.69295348]
[1737467278319,0.6,104800.0,104790.0,0.67802581]
[1737467278917,0.6,104800.0,104790.0,0.7418676]
[1737467279633,0.6,104800.0,104790.0,0.67802581]
[1737467281326,0.6,104800.0,104790.0,0.69295179]
[1737467281826,0.6,104800.0,104790.0,0.75679358]
[1737467282027,0.6,104800.0,104790.0,0.69295179]
[1737467282429,0.6,104800.0,104790.0,0.67802581]
[1737467283136,0.6,104800.0,104790.0,0.22180141]
[1737467283536,0.6,104800.0,104790.0,0.05915962]
[1737467283829,0.6,104800.0,104790.0,0.12300141]
[1737467284033,0.6,104800.0,104790.0,0.05915962]
[1737467284330,0.9608,104800.0,104790.0,0.05915962]
[1737467284517,0.9608,104800.0,104790.0,0.12300141]
[1737467284721,0.6,104800.0,104790.0,0.17200141]
[1737467284922,0.6,104800.0,104790.0,0.53280141]
[1737467285121,0.11398771,104810.0,104790.0,0.9920676]
[1737467285429,0.11398771,104810.0,104800.0,0.52010079]
[1737467285628,0.11398771,104810.0,104800.0,0.59531877]
[1737467285927,0.11398771,104810.0,104800.0,0.59531906]
[1737467287125,0.11398771,104810.0,104800.0,0.69173435]
[1737467287929,0.11398771,104810.0,104800.0,0.74090306]
[1737467288222,0.11398771,104820.0,104800.0,0.74090306]
[1737467288427,0.11398771,104820.0,104810.0,0.51949679]
[1737467289727,0.47478771,104820.0,104810.0,0.15869679]
[1737467289931,0.47478771,104820.0,104810.0,0.16769679]
[1737467290732,0.47478771,104820.0,104810.0,0.17169679]
[1737467292031,0.47478771,104830.0,104820.0,0.04775]
[1737467292230,0.11398771,104830.0,104820.0,0.11159179]
[1737467293327,0.47478771,104830.0,104820.0,0.11159179]
[1737467293528,0.11398771,104830.0,104820.0,0.11259179]
[1737467296038,0.47478771,104830.0,104820.0,0.11259179]
[1737467296337,0.11398771,104830.0,104820.0,0.04875]
[1737467296530,0.11398771,104830.0,104820.0,0.11259179]
[1737467297138,0.47478771,104830.0,104820.0,0.11259179]
[1737467297434,0.11398771,104830.0,104820.0,0.11259179]
[1737467298536,0.47478771,104830.0,104820.0,0.11259179]
[1737467299227,0.47478771,104830.0,104820.0,0.04875]
[1737467299426,0.11398771,104830.0,104820.0,0.11259179]
[1737467300132,0.47478771,104830.0,104820.0,0.11259179]
[1737467301630,0.11398771,104830.0,104820.0,0.11259179]
[1737467301826,0.11398771,104830.0,104820.0,0.27183067]
[1737467302134,0.06398771,104830.0,104820.0,0.67943067]
[1737467302530,0.06398771,104830.0,104820.0,0.75463877]
[1737467303133,0.06398771,104830.0,104820.0,0.60221284]
[1737467303339,0.06398771,104830.0,104820.0,0.47339179]
[1737467303937,0.06398771,104830.0,104820.0,0.67773067]
[1737467305037,0.06398771,104830.0,104820.0,0.61388888]
[1737467306242,0.06398771,104830.0,104820.0,0.51849179]
[1737467306442,0.54219614,104840.0,104830.0,0.047746]
[1737467306637,0.047746,104830.0,104820.0,0.048748]
[1737467306940,0.47238779,104830.0,104820.0,0.00114338]
[1737467307241,0.408546,104830.0,104820.0,0.04889338]
[1737467308246,0.408546,104830.0,104820.0,0.11173517]
[1737467309035,0.408546,104830.0,104820.0,0.11273517]
[1737467309346,0.408546,104830.0,104820.0,0.04889338]
[1737467311948,0.047746,104830.0,104820.0,0.04889338]
[1737467312440,0.56131085,104840.0,104820.0,0.04889338]
[1737467312645,0.60905485,104840.0,104830.0,0.047746]
[1737467314138,0.047746,104830.0,104820.0,0.00114338]
[1737467314346,0.408546,104830.0,104820.0,0.04889338]
[1737467314847,0.408546,104830.0,104820.0,0.00114338]
[1737467315044,0.408546,104830.0,104820.0,0.04889338]
[1737467315442,0.408546,104830.0,104820.0,0.04789338]
[1737467315753,0.408546,104830.0,104820.0,0.04889338]
[1737467316852,0.47238779,104830.0,104820.0,0.00114338]
[1737467319552,0.408546,104830.0,104820.0,0.00114338]
[1737467319760,0.61522656,104830.0,104820.0,0.00114338]
[1737467320256,0.61522656,104830.0,104820.0,0.04889338]
[1737467320257,0.55138477,104830.0,104820.0,0.04889338]
[1737467321354,0.61522656,104830.0,104820.0,0.04889338]
[1737467321553,0.61522656,104830.0,104820.0,0.11273517]
[1737467321554,0.14283877,104830.0,104820.0,0.11273517]
[1737467321947,0.14283877,104830.0,104820.0,0.20673517]
[1737467322455,0.50363877,104830.0,104820.0,0.20673517]
[1737467323253,0.50363877,104830.0,104820.0,0.14289338]
[1737467323454,0.14283877,104830.0,104820.0,0.20673517]
[1737467323845,0.14283877,104830.0,104820.0,0.63137696]